[Event "Late-Titled-Tuesday-Blitz-February-27-2024"]
[Site "Chess.com"]
[Date "2024.02.27"]
[Round "2"]
[White "jinxy2009"]
[Black "Flaccidmoves"]
[Result "0-1"]
[WhiteElo "2163"]
[BlackElo "2466"]
[TimeControl "180+1"]
[EndTime "14:16:35 PST"]
[Termination "Flaccidmoves won by resignation"]

1. e4 {[%clk 0:03:00.9]} 1... Nf6 {[%clk 0:02:57.1]} 2. e5 {[%clk 0:03:00.4]}
2... Nd5 {[%clk 0:02:57.6]} 3. c4 {[%clk 0:03:00.7]} 3... Nb6 {[%clk 0:02:58]}
4. d4 {[%clk 0:03:01.4]} 4... d6 {[%clk 0:02:58.3]} 5. exd6 {[%clk 0:03:02]}
5... exd6 {[%clk 0:02:58.5]} 6. Nc3 {[%clk 0:02:55]} 6... Bf5 {[%clk 0:02:57.9]}
7. Bd3 {[%clk 0:02:52.2]} 7... Bxd3 {[%clk 0:02:56.9]} 8. Qxd3 {[%clk
0:02:53.1]} 8... Be7 {[%clk 0:02:57.2]} 9. Nf3 {[%clk 0:02:49.5]} 9... O-O
{[%clk 0:02:56]} 10. O-O {[%clk 0:02:49.4]} 10... Nc6 {[%clk 0:02:55.7]} 11. b3
{[%clk 0:02:49.7]} 11... Bf6 {[%clk 0:02:53.6]} 12. Be3 {[%clk 0:02:48.8]} 12...
g6 {[%clk 0:02:43.6]} 13. Rac1 {[%clk 0:02:42.3]} 13... d5 {[%clk 0:02:38.4]}
14. c5 {[%clk 0:02:41]} 14... Nc8 {[%clk 0:02:38.2]} 15. Rfd1 {[%clk 0:02:34.2]}
15... N8e7 {[%clk 0:02:37.3]} 16. Qb1 {[%clk 0:02:06.5]} 16... Nf5 {[%clk
0:02:30.9]} 17. b4 {[%clk 0:02:01.7]} 17... Re8 {[%clk 0:02:25.5]} 18. b5 {[%clk
0:01:57.7]} 18... Na5 {[%clk 0:02:23.9]} 19. Bf4 {[%clk 0:01:46.9]} 19... c6
{[%clk 0:02:12.8]} 20. bxc6 {[%clk 0:01:43.4]} 20... bxc6 {[%clk 0:02:13.7]} 21.
Qd3 {[%clk 0:01:07.9]} 21... Nc4 {[%clk 0:02:10.3]} 22. Rb1 {[%clk 0:01:00.8]}
22... Qd7 {[%clk 0:01:53]} 23. h3 {[%clk 0:00:36.6]} 23... h5 {[%clk 0:01:45.5]}
24. Bg5 {[%clk 0:00:29.8]} 24... Bg7 {[%clk 0:01:38.8]} 25. Re1 {[%clk
0:00:20.6]} 25... Rxe1+ {[%clk 0:01:33.2]} 26. Rxe1 {[%clk 0:00:20.3]} 26... Re8
{[%clk 0:01:33.4]} 27. Rxe8+ {[%clk 0:00:11.1]} 27... Qxe8 {[%clk 0:01:34.3]}
28. Ne2 {[%clk 0:00:11]} 28... Qe4 {[%clk 0:01:25.6]} 29. Qxe4 {[%clk 0:00:09]}
29... dxe4 {[%clk 0:01:25.9]} 30. Nd2 {[%clk 0:00:09.5]} 30... Nxd2 {[%clk
0:01:22.9]} 31. Bxd2 {[%clk 0:00:09.6]} 31... Nxd4 {[%clk 0:01:23.4]} 32. Nxd4
{[%clk 0:00:09.7]} 32... Bxd4 {[%clk 0:01:24.1]} 33. Bb4 {[%clk 0:00:09.9]}
33... f5 {[%clk 0:01:21.4]} 34. Kf1 {[%clk 0:00:10.2]} 34... Kf7 {[%clk
0:01:21.9]} 35. Ke2 {[%clk 0:00:10.6]} 35... Ke6 {[%clk 0:01:22.5]} 36. f3
{[%clk 0:00:05.5]} 36... Kd5 {[%clk 0:01:22.2]} 37. fxe4+ {[%clk 0:00:05.4]}
37... fxe4 {[%clk 0:01:23.1]} 38. g4 {[%clk 0:00:02.2]} 38... Bxc5 {[%clk
0:01:20.9]} 39. Bxc5 {[%clk 0:00:01.4]} 39... Kxc5 {[%clk 0:01:21.8]} 40. gxh5
{[%clk 0:00:01.5]} 40... gxh5 {[%clk 0:01:21.9]} 41. Ke3 {[%clk 0:00:02.4]}
41... Kd5 {[%clk 0:01:22]} 42. Kf4 {[%clk 0:00:03]} 42... Kd4 {[%clk 0:01:22.3]}
43. Kg5 {[%clk 0:00:03.6]} 43... e3 {[%clk 0:01:22.7]} 44. Kxh5 {[%clk
0:00:04.3]} 44... e2 {[%clk 0:01:23.3]} 45. h4 {[%clk 0:00:05]} 45... e1=Q
{[%clk 0:01:23.9]} 46. Kg6 {[%clk 0:00:05.6]} 46... Qxh4 {[%clk 0:01:23.9]} 0-1

[Event "Late-Titled-Tuesday-Blitz-February-27-2024"]
[Site "Chess.com"]
[Date "2024.02.27"]
[Round "2"]
[White "michaelk123"]
[Black "Yushko_Olga"]
[Result "1-0"]
[WhiteElo "2483"]
[BlackElo "2202"]
[TimeControl "180+1"]
[EndTime "14:16:38 PST"]
[Termination "michaelk123 won by resignation"]

1. d4 {[%clk 0:03:00.9]} 1... e6 {[%clk 0:02:59.2]} 2. c4 {[%clk 0:03:00.2]}
2... Nf6 {[%clk 0:02:59.3]} 3. Nc3 {[%clk 0:02:59.4]} 3... d5 {[%clk 0:03:00]}
4. cxd5 {[%clk 0:02:55.6]} 4... exd5 {[%clk 0:02:59.7]} 5. Bg5 {[%clk
0:02:56.2]} 5... Nbd7 {[%clk 0:02:54.8]} 6. e3 {[%clk 0:02:54.1]} 6... Be7
{[%clk 0:02:53.5]} 7. Bd3 {[%clk 0:02:50.5]} 7... O-O {[%clk 0:02:53.3]} 8. Qc2
{[%clk 0:02:49.7]} 8... h6 {[%clk 0:02:52.9]} 9. Bh4 {[%clk 0:02:48]} 9... c5
{[%clk 0:02:40.9]} 10. Nge2 {[%clk 0:02:40.3]} 10... cxd4 {[%clk 0:02:40]} 11.
Nxd4 {[%clk 0:02:39]} 11... Ne5 {[%clk 0:02:38.6]} 12. Be2 {[%clk 0:02:36.5]}
12... Bg4 {[%clk 0:02:28.5]} 13. O-O {[%clk 0:02:32.1]} 13... Rc8 {[%clk
0:02:26.5]} 14. Rac1 {[%clk 0:02:15.2]} 14... Bxe2 {[%clk 0:02:22.4]} 15. Qxe2
{[%clk 0:02:14]} 15... Nc4 {[%clk 0:02:21]} 16. Rfd1 {[%clk 0:02:09.2]} 16...
Qb6 {[%clk 0:02:12.1]} 17. Bxf6 {[%clk 0:01:59.1]} 17... Bxf6 {[%clk 0:02:12.1]}
18. Nxd5 {[%clk 0:01:58.3]} 18... Qxb2 {[%clk 0:02:11.4]} 19. Nxf6+ {[%clk
0:01:25.8]} 19... gxf6 {[%clk 0:02:12.3]} 20. Qg4+ {[%clk 0:01:19.7]} 20... Kh7
{[%clk 0:02:12.8]} 21. Nf5 {[%clk 0:01:11.6]} 21... Rg8 {[%clk 0:02:10]} 22. Qh4
{[%clk 0:01:07.9]} 22... Rg6 {[%clk 0:02:01.8]} 23. Rxc4 {[%clk 0:01:06]} 23...
Qe2 {[%clk 0:01:43.4]} 24. Rcd4 {[%clk 0:00:51.6]} 24... Rc2 {[%clk 0:01:23]}
25. Rd7 {[%clk 0:00:47.9]} 25... Rc7 {[%clk 0:01:21]} 26. R7d4 {[%clk
0:00:34.2]} 26... Rc2 {[%clk 0:01:20.3]} 27. Qf4 {[%clk 0:00:27]} 27... Rg5
{[%clk 0:01:07.3]} 28. Ng3 {[%clk 0:00:26.4]} 28... Qa6 {[%clk 0:01:02.4]} 29.
Qe4+ {[%clk 0:00:25.3]} 29... f5 {[%clk 0:01:01]} 30. Qxc2 {[%clk 0:00:24.3]}
30... h5 {[%clk 0:01:01.6]} 31. Rd7 {[%clk 0:00:21.1]} 31... Qe6 {[%clk
0:01:00.7]} 32. Qb3 {[%clk 0:00:20]} 32... Qe5 {[%clk 0:00:54.2]} 33. Qxf7+
{[%clk 0:00:17.4]} 33... Rg7 {[%clk 0:00:53.9]} 34. Qxg7+ {[%clk 0:00:16.5]} 1-0

[Event "Late-Titled-Tuesday-Blitz-February-27-2024"]
[Site "Chess.com"]
[Date "2024.02.27"]
[Round "2"]
[White "NovakRatko"]
[Black "rcmz"]
[Result "1-0"]
[WhiteElo "2476"]
[BlackElo "2188"]
[TimeControl "180+1"]
[EndTime "14:16:39 PST"]
[Termination "NovakRatko won by checkmate"]

1. d4 {[%clk 0:02:52.2]} 1... d6 {[%clk 0:02:58.2]} 2. f4 {[%clk 0:02:48.1]}
2... Nd7 {[%clk 0:02:59.1]} 3. e4 {[%clk 0:02:48]} 3... h6 {[%clk 0:02:58.2]} 4.
Nf3 {[%clk 0:02:48.1]} 4... g5 {[%clk 0:02:56.9]} 5. fxg5 {[%clk 0:02:47.6]}
5... Bg7 {[%clk 0:02:57.1]} 6. c3 {[%clk 0:02:45.6]} 6... Nf8 {[%clk 0:02:55.8]}
7. Bc4 {[%clk 0:02:44]} 7... Be6 {[%clk 0:02:45.7]} 8. d5 {[%clk 0:02:40]} 8...
Bd7 {[%clk 0:02:41.4]} 9. Qb3 {[%clk 0:02:38.1]} 9... b6 {[%clk 0:02:36.2]} 10.
Be3 {[%clk 0:02:37.5]} 10... Ng6 {[%clk 0:02:34.2]} 11. Nbd2 {[%clk 0:02:35]}
11... Ne5 {[%clk 0:02:26.3]} 12. Nxe5 {[%clk 0:02:34.7]} 12... Bxe5 {[%clk
0:02:25.5]} 13. Nf3 {[%clk 0:02:34.9]} 13... Bg7 {[%clk 0:02:20.9]} 14. Qd1
{[%clk 0:02:29.7]} 14... hxg5 {[%clk 0:02:14.4]} 15. Nxg5 {[%clk 0:02:19.9]}
15... Nf6 {[%clk 0:02:13.6]} 16. Bd4 {[%clk 0:02:00.4]} 16... Bg4 {[%clk
0:02:02.8]} 17. Qd3 {[%clk 0:01:55.2]} 17... Kf8 {[%clk 0:02:01.2]} 18. O-O
{[%clk 0:01:48.1]} 18... Qd7 {[%clk 0:01:51.9]} 19. e5 {[%clk 0:01:45.1]} 19...
dxe5 {[%clk 0:01:51]} 20. Bxe5 {[%clk 0:01:45]} 20... Bh5 {[%clk 0:01:37.5]} 21.
h3 {[%clk 0:01:42.1]} 21... Kg8 {[%clk 0:01:29.3]} 22. Rae1 {[%clk 0:01:36.4]}
22... Rd8 {[%clk 0:01:22.7]} 23. Re3 {[%clk 0:01:27.9]} 23... Nxd5 {[%clk
0:01:10.3]} 24. Nxf7 {[%clk 0:00:45]} 24... Bxf7 {[%clk 0:00:38]} 25. Rg3 {[%clk
0:00:44.3]} 25... Nf6 {[%clk 0:00:32.9]} 26. Qg6 {[%clk 0:00:32.6]} 26... Bxc4
{[%clk 0:00:12.4]} 27. Qxg7# {[%clk 0:00:32.2]} 1-0

[Event "Late-Titled-Tuesday-Blitz-February-27-2024"]
[Site "Chess.com"]
[Date "2024.02.27"]
[Round "2"]
[White "MyDream003"]
[Black "Carlitus2004"]
[Result "1-0"]
[WhiteElo "2715"]
[BlackElo "2384"]
[TimeControl "180+1"]
[EndTime "14:16:42 PST"]
[Termination "MyDream003 won by resignation"]

1. Nf3 {[%clk 0:03:00.9]} 1... b6 {[%clk 0:02:31.1]} 2. g3 {[%clk 0:03:00.3]}
2... Bb7 {[%clk 0:02:30.5]} 3. Bg2 {[%clk 0:03:00.7]} 3... g6 {[%clk 0:02:30.9]}
4. O-O {[%clk 0:03:00.9]} 4... Bg7 {[%clk 0:02:31.5]} 5. d4 {[%clk 0:03:00.3]}
5... Nf6 {[%clk 0:02:30.5]} 6. c3 {[%clk 0:02:58.3]} 6... O-O {[%clk 0:02:30.7]}
7. Bf4 {[%clk 0:02:54.4]} 7... d6 {[%clk 0:02:31]} 8. Nbd2 {[%clk 0:02:51.1]}
8... Nbd7 {[%clk 0:02:31.6]} 9. Nc4 {[%clk 0:02:41.6]} 9... Re8 {[%clk
0:02:24.8]} 10. a4 {[%clk 0:02:39.8]} 10... a6 {[%clk 0:02:23.7]} 11. Qc1 {[%clk
0:02:37.9]} 11... Be4 {[%clk 0:02:16.5]} 12. Rd1 {[%clk 0:02:35.9]} 12... d5
{[%clk 0:02:16.3]} 13. Nce5 {[%clk 0:02:35.1]} 13... Nxe5 {[%clk 0:02:16.2]} 14.
Bxe5 {[%clk 0:02:33.8]} 14... Qd7 {[%clk 0:02:02.8]} 15. h3 {[%clk 0:02:28.5]}
15... Bxf3 {[%clk 0:01:55.1]} 16. exf3 {[%clk 0:02:29.4]} 16... e6 {[%clk
0:01:55.5]} 17. Re1 {[%clk 0:02:27.3]} 17... Rec8 {[%clk 0:01:54.1]} 18. Qd2
{[%clk 0:02:25.8]} 18... Ne8 {[%clk 0:01:53.9]} 19. Bf4 {[%clk 0:02:25.8]} 19...
Nd6 {[%clk 0:01:53.8]} 20. Bf1 {[%clk 0:02:25.7]} 20... h5 {[%clk 0:01:47.1]}
21. h4 {[%clk 0:02:24.9]} 21... Nf5 {[%clk 0:01:47]} 22. Bd3 {[%clk 0:02:24.9]}
22... Re8 {[%clk 0:01:46.2]} 23. Kg2 {[%clk 0:02:23.4]} 23... Bf8 {[%clk
0:01:45.8]} 24. a5 {[%clk 0:02:20.1]} 24... b5 {[%clk 0:01:45.6]} 25. b4 {[%clk
0:02:20.3]} 25... Bd6 {[%clk 0:01:44.9]} 26. Bg5 {[%clk 0:02:17.1]} 26... Be7
{[%clk 0:01:42.4]} 27. Bf4 {[%clk 0:01:34.2]} 27... Bd6 {[%clk 0:01:42.4]} 28.
Be5 {[%clk 0:01:29.2]} 28... c6 {[%clk 0:01:28.7]} 29. Qf4 {[%clk 0:01:17.9]}
29... Bxe5 {[%clk 0:01:27.1]} 30. Rxe5 {[%clk 0:01:17.3]} 30... Kg7 {[%clk
0:01:20.2]} 31. Rh1 {[%clk 0:01:12.6]} 31... Rh8 {[%clk 0:01:18.9]} 32. Qd2
{[%clk 0:01:12.6]} 32... Rae8 {[%clk 0:01:18.5]} 33. Re2 {[%clk 0:01:10.9]}
33... Nd6 {[%clk 0:01:18.1]} 34. Qf4 {[%clk 0:01:09.3]} 34... Qd8 {[%clk
0:01:13.5]} 35. Qe5+ {[%clk 0:01:07.8]} 35... Kh7 {[%clk 0:01:11.2]} 36. Qxh5+
{[%clk 0:01:07]} 36... Kg7 {[%clk 0:01:09.8]} 37. Qe5+ {[%clk 0:01:07.6]} 37...
Kh7 {[%clk 0:01:09.5]} 38. h5 {[%clk 0:01:07.7]} 38... f6 {[%clk 0:01:07.2]} 39.
hxg6+ {[%clk 0:00:58.7]} 39... Kg7 {[%clk 0:01:07.8]} 40. Qf4 {[%clk 0:00:59]}
40... Rxh1 {[%clk 0:01:06.7]} 41. Kxh1 {[%clk 0:00:59.9]} 41... Rh8+ {[%clk
0:01:06.6]} 42. Kg2 {[%clk 0:01:00.2]} 42... Qe7 {[%clk 0:01:06.2]} 43. Qg4
{[%clk 0:00:56.4]} 43... f5 {[%clk 0:01:03.9]} 44. Bxf5 {[%clk 0:00:52.9]} 44...
Nxf5 {[%clk 0:01:00.3]} 45. Qxf5 {[%clk 0:00:53.1]} 45... exf5 {[%clk
0:00:54.1]} 46. Rxe7+ {[%clk 0:00:54]} 46... Kxg6 {[%clk 0:00:52.6]} 47. Re6+
{[%clk 0:00:54.4]} 47... Kf7 {[%clk 0:00:53]} 48. Rxc6 {[%clk 0:00:54.6]} 48...
Re8 {[%clk 0:00:53.6]} 49. Rxa6 {[%clk 0:00:54.6]} 49... Re2 {[%clk 0:00:54.1]}
50. Rc6 {[%clk 0:00:53.4]} 50... Ra2 {[%clk 0:00:52.7]} 51. Rc5 {[%clk
0:00:53.9]} 51... Ra3 {[%clk 0:00:53.1]} 52. Rxb5 {[%clk 0:00:53.5]} 52... Rxc3
{[%clk 0:00:52.7]} 53. a6 {[%clk 0:00:54.1]} 53... Ra3 {[%clk 0:00:52.3]} 54.
Ra5 {[%clk 0:00:54.6]} 1-0

[Event "Late-Titled-Tuesday-Blitz-February-27-2024"]
[Site "Chess.com"]
[Date "2024.02.27"]
[Round "2"]
[White "PawnEatingZombie"]
[Black "korkmaz16"]
[Result "0-1"]
[WhiteElo "2185"]
[BlackElo "2476"]
[TimeControl "180+1"]
[EndTime "14:16:46 PST"]
[Termination "korkmaz16 won on time"]

1. e4 {[%clk 0:03:00.9]} 1... e6 {[%clk 0:02:58.7]} 2. d4 {[%clk 0:03:00.3]}
2... d5 {[%clk 0:02:58.9]} 3. exd5 {[%clk 0:03:01.2]} 3... exd5 {[%clk
0:02:58.6]} 4. Bf4 {[%clk 0:03:01.7]} 4... Nf6 {[%clk 0:02:54.9]} 5. Nc3 {[%clk
0:02:59.5]} 5... Bb4 {[%clk 0:02:51.7]} 6. a3 {[%clk 0:02:57]} 6... Bxc3+ {[%clk
0:02:51]} 7. bxc3 {[%clk 0:02:57.9]} 7... O-O {[%clk 0:02:50.7]} 8. Bd3 {[%clk
0:02:58]} 8... Re8+ {[%clk 0:02:48.3]} 9. Ne2 {[%clk 0:02:58.6]} 9... Bg4 {[%clk
0:02:47.8]} 10. f3 {[%clk 0:02:49.6]} 10... Nh5 {[%clk 0:02:44.1]} 11. O-O
{[%clk 0:02:31.2]} 11... Nxf4 {[%clk 0:02:42]} 12. Nxf4 {[%clk 0:02:31.4]} 12...
Bc8 {[%clk 0:02:35.1]} 13. Qd2 {[%clk 0:02:25.5]} 13... Nd7 {[%clk 0:02:31.6]}
14. Rfe1 {[%clk 0:02:23.5]} 14... c6 {[%clk 0:02:31]} 15. g3 {[%clk 0:02:10.5]}
15... Nf6 {[%clk 0:02:29.2]} 16. Rxe8+ {[%clk 0:02:06.1]} 16... Qxe8 {[%clk
0:02:29]} 17. Re1 {[%clk 0:02:06.5]} 17... Qf8 {[%clk 0:02:29.2]} 18. g4 {[%clk
0:02:01.3]} 18... h6 {[%clk 0:02:15.9]} 19. h4 {[%clk 0:01:59.2]} 19... Bd7
{[%clk 0:02:12.4]} 20. g5 {[%clk 0:01:58.5]} 20... hxg5 {[%clk 0:02:00.4]} 21.
hxg5 {[%clk 0:01:59.4]} 21... Ne8 {[%clk 0:02:00.7]} 22. Qh2 {[%clk 0:01:52.9]}
22... g6 {[%clk 0:01:58.1]} 23. Kf2 {[%clk 0:01:47.4]} 23... Qg7 {[%clk
0:01:51.3]} 24. Re7 {[%clk 0:01:31.6]} 24... Rd8 {[%clk 0:01:50.4]} 25. Bxg6
{[%clk 0:01:20.8]} 25... Nd6 {[%clk 0:01:48.7]} 26. Nh5 {[%clk 0:00:45.3]} 26...
Qxg6 {[%clk 0:01:44.1]} 27. Nf6+ {[%clk 0:00:45.1]} 27... Kg7 {[%clk 0:01:44.5]}
28. Qxd6 {[%clk 0:00:33.6]} 28... Qxc2+ {[%clk 0:01:20.6]} 29. Kg3 {[%clk
0:00:33.4]} 29... Rh8 {[%clk 0:01:14]} 30. Rxf7+ {[%clk 0:00:06.3]} 30... Kxf7
{[%clk 0:01:13.5]} 31. Qxd7+ {[%clk 0:00:06.3]} 31... Kg6 {[%clk 0:01:14.1]} 32.
Ng4 {[%clk 0:00:03.3]} 32... Qf5 {[%clk 0:01:06.7]} 33. Qd6+ {[%clk 0:00:03.3]}
33... Kxg5 {[%clk 0:01:06.8]} 34. Qe7+ {[%clk 0:00:03]} 34... Kg6 {[%clk
0:01:04.6]} 35. Qd6+ {[%clk 0:00:03.1]} 35... Kh7 {[%clk 0:01:03]} 36. Qe7+
{[%clk 0:00:02.9]} 36... Kg6 {[%clk 0:01:00.1]} 37. Qd6+ {[%clk 0:00:02.8]}
37... Kg5 {[%clk 0:01:00.5]} 38. Qe7+ {[%clk 0:00:02.9]} 38... Kh5 {[%clk
0:00:59.5]} 0-1

[Event "Late-Titled-Tuesday-Blitz-February-27-2024"]
[Site "Chess.com"]
[Date "2024.02.27"]
[Round "2"]
[White "ChessSwole"]
[Black "ElVital"]
[Result "1-0"]
[WhiteElo "2702"]
[BlackElo "2381"]
[TimeControl "180+1"]
[EndTime "14:16:53 PST"]
[Termination "ChessSwole won by resignation"]

1. d4 {[%clk 0:03:00.9]} 1... Nf6 {[%clk 0:02:54]} 2. c4 {[%clk 0:02:59.4]} 2...
g6 {[%clk 0:02:53.5]} 3. Nc3 {[%clk 0:02:59.4]} 3... Bg7 {[%clk 0:02:53.7]} 4.
e4 {[%clk 0:02:59.4]} 4... d6 {[%clk 0:02:54]} 5. f3 {[%clk 0:02:57.6]} 5... O-O
{[%clk 0:02:54.3]} 6. Nge2 {[%clk 0:02:57.2]} 6... c5 {[%clk 0:02:53.9]} 7. d5
{[%clk 0:02:55.3]} 7... e6 {[%clk 0:02:54.2]} 8. Ng3 {[%clk 0:02:55.3]} 8... h5
{[%clk 0:02:53.7]} 9. Bg5 {[%clk 0:02:54.9]} 9... exd5 {[%clk 0:02:52.6]} 10.
cxd5 {[%clk 0:02:55.8]} 10... a6 {[%clk 0:02:52.3]} 11. a4 {[%clk 0:02:55.1]}
11... Nbd7 {[%clk 0:02:52.5]} 12. Be2 {[%clk 0:02:53.4]} 12... Qc7 {[%clk
0:02:51.2]} 13. O-O {[%clk 0:02:51.2]} 13... Nh7 {[%clk 0:02:51]} 14. Be3 {[%clk
0:02:49.8]} 14... h4 {[%clk 0:02:51]} 15. Nh1 {[%clk 0:02:50]} 15... h3 {[%clk
0:02:51]} 16. g3 {[%clk 0:02:47.1]} 16... f5 {[%clk 0:02:50.5]} 17. Qd2 {[%clk
0:02:43.1]} 17... Ne5 {[%clk 0:02:50.2]} 18. Nf2 {[%clk 0:02:22.8]} 18... Rb8
{[%clk 0:02:48.4]} 19. f4 {[%clk 0:02:13.4]} 19... Ng4 {[%clk 0:02:47.8]} 20.
Nxg4 {[%clk 0:02:10.2]} 20... fxg4 {[%clk 0:02:48.7]} 21. e5 {[%clk 0:02:01.9]}
21... Bf5 {[%clk 0:02:42.7]} 22. Bc4 {[%clk 0:01:52.3]} 22... Kh8 {[%clk
0:02:40.6]} 23. a5 {[%clk 0:01:44.5]} 23... Rfe8 {[%clk 0:02:36.2]} 24. e6
{[%clk 0:01:42.6]} 24... Nf6 {[%clk 0:02:31.9]} 25. Bd3 {[%clk 0:01:38.8]} 25...
b5 {[%clk 0:02:07.1]} 26. axb6 {[%clk 0:01:34.1]} 26... Qxb6 {[%clk 0:02:06.4]}
27. Bxf5 {[%clk 0:01:34]} 27... gxf5 {[%clk 0:02:06.3]} 28. Rf2 {[%clk
0:01:25.6]} 28... Qb3 {[%clk 0:02:02.4]} 29. Ra3 {[%clk 0:01:21]} 29... Qc4
{[%clk 0:02:01]} 30. Ra4 {[%clk 0:01:11.3]} 30... Rb4 {[%clk 0:01:59.7]} 31. Qc2
{[%clk 0:00:47.9]} 31... Ne4 {[%clk 0:01:54.7]} 32. Rxb4 {[%clk 0:00:43.3]}
32... cxb4 {[%clk 0:01:41.6]} 33. Nxe4 {[%clk 0:00:43.4]} 33... Qxe4 {[%clk
0:01:32.4]} 34. Qxe4 {[%clk 0:00:42.8]} 34... fxe4 {[%clk 0:01:33.3]} 35. f5
{[%clk 0:00:37.2]} 35... Bf6 {[%clk 0:01:32.3]} 36. Rf4 {[%clk 0:00:37.4]} 36...
Bxb2 {[%clk 0:01:30.8]} 37. f6 {[%clk 0:00:36.8]} 37... Bxf6 {[%clk 0:00:56.1]}
38. Rxf6 {[%clk 0:00:37.7]} 38... b3 {[%clk 0:00:56]} 39. Bd4 {[%clk 0:00:37.7]}
39... Kg8 {[%clk 0:00:55.6]} 40. Rg6+ {[%clk 0:00:37.2]} 40... Kh7 {[%clk
0:00:54.3]} 41. Rxg4 {[%clk 0:00:36.3]} 41... Kh6 {[%clk 0:00:55.2]} 42. Rxe4
{[%clk 0:00:36.2]} 1-0

[Event "Late-Titled-Tuesday-Blitz-February-27-2024"]
[Site "Chess.com"]
[Date "2024.02.27"]
[Round "2"]
[White "Malev212"]
[Black "LyonBeast"]
[Result "0-1"]
[WhiteElo "2651"]
[BlackElo "3130"]
[TimeControl "180+1"]
[EndTime "14:16:59 PST"]
[Termination "LyonBeast won by resignation"]

1. e4 {[%clk 0:03:00.9]} 1... c5 {[%clk 0:02:58.9]} 2. Nf3 {[%clk 0:02:59.8]}
2... Nc6 {[%clk 0:02:58.8]} 3. d4 {[%clk 0:02:59.3]} 3... cxd4 {[%clk
0:02:58.9]} 4. Nxd4 {[%clk 0:02:59]} 4... Nf6 {[%clk 0:02:59.5]} 5. Nc3 {[%clk
0:02:58.5]} 5... e5 {[%clk 0:03:00.2]} 6. Ndb5 {[%clk 0:02:57.7]} 6... d6 {[%clk
0:03:00.7]} 7. Bg5 {[%clk 0:02:56.4]} 7... a6 {[%clk 0:03:01.4]} 8. Na3 {[%clk
0:02:55.4]} 8... b5 {[%clk 0:03:02]} 9. Bxf6 {[%clk 0:02:54]} 9... gxf6 {[%clk
0:03:02.3]} 10. Nab1 {[%clk 0:02:53.5]} 10... Bg7 {[%clk 0:02:46.9]} 11. a4
{[%clk 0:02:49.4]} 11... b4 {[%clk 0:02:41]} 12. Nd5 {[%clk 0:02:49.2]} 12... f5
{[%clk 0:02:33.9]} 13. Nd2 {[%clk 0:02:30.4]} 13... O-O {[%clk 0:02:28.3]} 14.
Bc4 {[%clk 0:02:13.2]} 14... Kh8 {[%clk 0:02:28.1]} 15. exf5 {[%clk 0:02:04.7]}
15... Bxf5 {[%clk 0:02:29]} 16. g4 {[%clk 0:02:03.8]} 16... Be6 {[%clk
0:02:25.8]} 17. h4 {[%clk 0:01:55.9]} 17... Rc8 {[%clk 0:02:24.3]} 18. Ne4
{[%clk 0:01:50.4]} 18... Nd4 {[%clk 0:02:23.4]} 19. Ng5 {[%clk 0:01:22]} 19...
e4 {[%clk 0:01:53.6]} 20. b3 {[%clk 0:01:05.8]} 20... Bxd5 {[%clk 0:01:28.2]}
21. Bxd5 {[%clk 0:01:04.6]} 21... Nxc2+ {[%clk 0:01:28.8]} 22. Kf1 {[%clk
0:01:00.5]} 22... Nxa1 {[%clk 0:01:28.7]} 23. Bxe4 {[%clk 0:00:45.8]} 23... h6
{[%clk 0:01:16.7]} 24. Kg2 {[%clk 0:00:41.5]} 24... Qe7 {[%clk 0:01:07.7]} 25.
Qf3 {[%clk 0:00:35.4]} 25... Rc5 {[%clk 0:01:04]} 26. Bb1 {[%clk 0:00:29.5]}
26... Rxg5 {[%clk 0:00:41.2]} 27. hxg5 {[%clk 0:00:28.1]} 27... Qxg5 {[%clk
0:00:42.1]} 28. Rh5 {[%clk 0:00:21.7]} 28... Qf6 {[%clk 0:00:33.6]} 29. Qe4
{[%clk 0:00:20]} 29... Qg6 {[%clk 0:00:33.7]} 30. Rf5 {[%clk 0:00:14.6]} 30...
Nxb3 {[%clk 0:00:30.1]} 31. Qf4 {[%clk 0:00:09.9]} 31... Nd4 {[%clk 0:00:27.7]}
0-1

[Event "Late-Titled-Tuesday-Blitz-February-27-2024"]
[Site "Chess.com"]
[Date "2024.02.27"]
[Round "2"]
[White "Baronessa08"]
[Black "pr1105"]
[Result "1-0"]
[WhiteElo "2529"]
[BlackElo "2333"]
[TimeControl "180+1"]
[EndTime "14:16:59 PST"]
[Termination "Baronessa08 won by resignation"]

1. c4 {[%clk 0:02:55.2]} 1... e5 {[%clk 0:02:58.4]} 2. Nc3 {[%clk 0:02:54.7]}
2... Nf6 {[%clk 0:02:55.3]} 3. Nf3 {[%clk 0:02:54.4]} 3... Nc6 {[%clk
0:02:54.2]} 4. g3 {[%clk 0:02:53.1]} 4... Bb4 {[%clk 0:02:53.8]} 5. Bg2 {[%clk
0:02:49]} 5... O-O {[%clk 0:02:47.6]} 6. O-O {[%clk 0:02:48.5]} 6... Re8 {[%clk
0:02:38.8]} 7. d3 {[%clk 0:02:36]} 7... h6 {[%clk 0:02:22.1]} 8. Bd2 {[%clk
0:02:31.5]} 8... a5 {[%clk 0:02:10.8]} 9. a3 {[%clk 0:02:31]} 9... Bc5 {[%clk
0:02:03]} 10. Nd5 {[%clk 0:02:20]} 10... d6 {[%clk 0:01:55.6]} 11. b4 {[%clk
0:02:16.2]} 11... Ba7 {[%clk 0:01:54.1]} 12. b5 {[%clk 0:02:10.4]} 12... Nd4
{[%clk 0:01:51.9]} 13. Nxf6+ {[%clk 0:02:03.9]} 13... Qxf6 {[%clk 0:01:49.9]}
14. e3 {[%clk 0:01:55.6]} 14... Nxf3+ {[%clk 0:01:41.4]} 15. Qxf3 {[%clk
0:01:56.5]} 15... Qxf3 {[%clk 0:01:27.7]} 16. Bxf3 {[%clk 0:01:57.4]} 16... Bb6
{[%clk 0:01:09.5]} 17. a4 {[%clk 0:01:53.6]} 17... Rb8 {[%clk 0:01:09.3]} 18.
Rad1 {[%clk 0:01:47.9]} 18... f5 {[%clk 0:01:08.4]} 19. Bd5+ {[%clk 0:01:46.4]}
19... Kf8 {[%clk 0:01:08]} 20. Bc3 {[%clk 0:01:45.4]} 20... Bd7 {[%clk
0:01:01.7]} 21. d4 {[%clk 0:01:41.5]} 21... e4 {[%clk 0:00:59.1]} 22. c5 {[%clk
0:01:37.2]} 22... dxc5 {[%clk 0:00:58.9]} 23. dxc5 {[%clk 0:01:37.4]} 23... Bxc5
{[%clk 0:00:59.8]} 24. Bxa5 {[%clk 0:01:33]} 24... b6 {[%clk 0:00:52.7]} 25. Bc3
{[%clk 0:01:30.4]} 25... Be6 {[%clk 0:00:48.5]} 26. Bc6 {[%clk 0:01:28.8]} 26...
Red8 {[%clk 0:00:47.4]} 27. Be5 {[%clk 0:01:21.3]} 27... Bd6 {[%clk 0:00:38.7]}
28. Bxd6+ {[%clk 0:01:18.9]} 28... Rxd6 {[%clk 0:00:39.6]} 29. Rxd6 {[%clk
0:01:18.7]} 29... cxd6 {[%clk 0:00:40.5]} 30. Ra1 {[%clk 0:01:15]} 30... Ke7
{[%clk 0:00:22.8]} 31. a5 {[%clk 0:01:13.3]} 31... Bd7 {[%clk 0:00:21.1]} 32.
Bxd7 {[%clk 0:01:05.7]} 32... Kxd7 {[%clk 0:00:22]} 33. a6 {[%clk 0:01:06.1]}
33... Rc8 {[%clk 0:00:17.1]} 34. Kg2 {[%clk 0:00:57.1]} 34... d5 {[%clk
0:00:16.8]} 35. h4 {[%clk 0:00:47.1]} 35... Kd6 {[%clk 0:00:17]} 36. h5 {[%clk
0:00:46.2]} 36... Ra8 {[%clk 0:00:16.9]} 37. Rc1 {[%clk 0:00:44.1]} 37... Ke5
{[%clk 0:00:14.4]} 38. Rc6 {[%clk 0:00:43.3]} 38... d4 {[%clk 0:00:13.1]} 39.
exd4+ {[%clk 0:00:42.9]} 39... Kxd4 {[%clk 0:00:14]} 40. Rxb6 {[%clk 0:00:43.1]}
40... Kc5 {[%clk 0:00:12.7]} 41. Rb7 {[%clk 0:00:43.2]} 1-0